[Event "Titled Tuesday Blitz June 13 Late 2023"]
[White "TimGrutter03"]
[Black "Djordjevic, Vuk"]
[BlackFideId "902098"]
[WhiteElo "2580"]
[BlackElo "2463"]
[Result "0-1"]
[Round "9"]
[TimeControl "180+2"]
[Date "2023.06.13"]
[WhiteClock "0:00:01"]
[BlackClock "0:00:03"]
[Board "32"]

1. e4 {[%clk 0:00:10]}  e6 {[%clk 0:00:10]} 2. d4 {[%clk 0:00:09]}  d5 {[%clk 0:00:10]} 3. Nc3 {[%clk 0:00:06]}  Bb4 {[%clk 0:00:08]} 4. exd5 {[%clk 0:00:05]}  exd5 {[%clk 0:00:08]} 5. Bd3 {[%clk 0:00:06]}  Nf6 {[%clk 0:00:08]} 6. Ne2 {[%clk 0:00:06]}  O-O {[%clk 0:00:09]} 7. O-O {[%clk 0:00:07]}  Nc6 {[%clk 0:00:08]} 8. a3 {[%clk 0:00:07]}  Bxc3 {[%clk 0:00:08]} 9. bxc3 {[%clk 0:00:08]}  h6 {[%clk 0:00:07]} 10. h3 {[%clk 0:00:08]}  Ne7 {[%clk 0:00:07]} 11. Bf4 {[%clk 0:00:08]}  Bf5 {[%clk 0:00:07]} 12. Bh2 {[%clk 0:00:07]}  Bxd3 {[%clk 0:00:06]} 13. cxd3 {[%clk 0:00:07]}  Ng6 {[%clk 0:00:04]} 14. Nf4 {[%clk 0:00:07]}  Nxf4 {[%clk 0:00:04]} 15. Bxf4 {[%clk 0:00:08]}  Qd7 {[%clk 0:00:03]} 16. Re1 {[%clk 0:00:08]}  Rfe8 {[%clk 0:00:04]} 17. Qd2 {[%clk 0:00:08]}  Nh7 {[%clk 0:00:04]} 18. a4 {[%clk 0:00:06]}  b6 {[%clk 0:00:04]} 19. a5 {[%clk 0:00:06]}  Nf8 {[%clk 0:00:05]} 20. axb6 {[%clk 0:00:06]}  axb6 {[%clk 0:00:05]} 21. Rxa8 {[%clk 0:00:04]}  Rxa8 {[%clk 0:00:06]} 22. Qe2 {[%clk 0:00:03]}  Ne6 {[%clk 0:00:06]} 23. Bg3 {[%clk 0:00:04]}  c5 {[%clk 0:00:06]} 24. dxc5 {[%clk 0:00:04]}  bxc5 {[%clk 0:00:07]} 25. Qe5 {[%clk 0:00:02]}  Re8 {[%clk 0:00:07]} 26. Re2 {[%clk 0:00:01]}  Rd8 {[%clk 0:00:07]} 27. Qe4 {[%clk 0:00:01]}  Re8 {[%clk 0:00:06]} 28. Qe3 {[%clk 0:00:02]}  Rc8 {[%clk 0:00:06]} 29. Qd2 {[%clk 0:00:02]}  Qb7 {[%clk 0:00:05]} 30. c4 {[%clk 0:00:01]}  dxc4 {[%clk 0:00:04]} 31. dxc4 {[%clk 0:00:02]}  Nd4 {[%clk 0:00:05]} 32. Re1 {[%clk 0:00:03]}  Rd8 {[%clk 0:00:05]} 33. Qe3 {[%clk 0:00:03]}  Nc2 {[%clk 0:00:04]} 34. Qe7 {[%clk 0:00:03]}  Qc8 {[%clk 0:00:03]} 35. Re2 {[%clk 0:00:03]}  Nd4 {[%clk 0:00:03]} 36. Re4 {[%clk 0:00:03]}  Ne6 {[%clk 0:00:03]} 37. Qa7 {[%clk 0:00:02]}  Rd7 {[%clk 0:00:03]} 38. Qa1 {[%clk 0:00:02]}  Rd3 {[%clk 0:00:03]} 39. Re3 {[%clk 0:00:03]}  Rd4 {[%clk 0:00:03]} 40. Be5 {[%clk 0:00:02]}  Rxc4 {[%clk 0:00:03]} 41. Bxg7 {[%clk 0:00:02]}  Nxg7 {[%clk 0:00:03]} 42. Rg3 {[%clk 0:00:03]}  Rd4 {[%clk 0:00:03]} 43. Kh2 {[%clk 0:00:02]}  Qf5 {[%clk 0:00:03]} 44. Qc1 {[%clk 0:00:02]}  Qf6 {[%clk 0:00:02]} 45. Qe3 {[%clk 0:00:01]}  Rd6 {[%clk 0:00:02]} 46. Qe8+ {[%clk 0:00:01]}  Kh7 {[%clk 0:00:02]} 47. Qe4+ {[%clk 0:00:02]}  Nf5 {[%clk 0:00:02]} 48. Rf3 {[%clk 0:00:02]}  Kg6 {[%clk 0:00:03]} 49. g4 {[%clk 0:00:02]}  Rd4 {[%clk 0:00:03]} 50. Qxf5+ {[%clk 0:00:02]}  Qxf5 {[%clk 0:00:02]} 51. Rxf5 {[%clk 0:00:03]}  c4 {[%clk 0:00:03]} 52. Rc5 {[%clk 0:00:03]}  Kf6 {[%clk 0:00:03]} 53. Kg3 {[%clk 0:00:03]}  Ke6 {[%clk 0:00:04]} 54. Rc6+ {[%clk 0:00:04]}  Kd5 {[%clk 0:00:03]} 55. Rxh6 {[%clk 0:00:04]}  c3 {[%clk 0:00:03]} 56. Ra6 {[%clk 0:00:04]}  c2 {[%clk 0:00:03]} 57. Ra5+ {[%clk 0:00:04]}  Kc4 {[%clk 0:00:03]} 58. Ra8 {[%clk 0:00:04]}  Kc3 {[%clk 0:00:03]} 59. Rc8+ {[%clk 0:00:01]}  Rc4 {[%clk 0:00:03]} 0-1


[Site "https://www.chess.com"]

[Event "Titled Tuesday Blitz June 13 Late 2023"]
[White "Vovk, Orest"]
[Black "Nazari, Arad"]
[WhiteFideId "14113490"]
[BlackFideId "12577324"]
[WhiteElo "2215"]
[BlackElo "2175"]
[Result "0-1"]
[Round "9"]
[TimeControl "180+2"]
[Date "2023.06.13"]
[WhiteClock "0:00:10"]
[BlackClock "0:00:07"]
[Board "33"]

1. g4 {[%clk 0:03:00]}  e5 {[%clk 0:02:58]} 2. Bg2 {[%clk 0:02:59]}  d5 {[%clk 0:02:58]} 3. h3 {[%clk 0:02:58]}  h5 {[%clk 0:02:55]} 4. g5 {[%clk 0:02:58]}  c6 {[%clk 0:02:52]} 5. d4 {[%clk 0:02:58]}  e4 {[%clk 0:02:50]} 6. c4 {[%clk 0:02:57]}  Ne7 {[%clk 0:02:45]} 7. Nc3 {[%clk 0:02:57]}  Ng6 {[%clk 0:02:45]} 8. h4 {[%clk 0:02:54]}  Be6 {[%clk 0:02:42]} 9. Qb3 {[%clk 0:02:54]}  Qd7 {[%clk 0:02:33]} 10. Bh3 {[%clk 0:02:42]}  dxc4 {[%clk 0:02:25]} 11. Bxe6 {[%clk 0:02:40]}  cxb3 {[%clk 0:02:25]} 12. Bxd7+ {[%clk 0:02:39]}  Nxd7 {[%clk 0:02:26]} 13. Nxe4 {[%clk 0:02:26]}  bxa2 {[%clk 0:02:21]} 14. Rxa2 {[%clk 0:02:25]}  Bb4+ {[%clk 0:02:20]} 15. Kf1 {[%clk 0:02:19]}  O-O {[%clk 0:02:18]} 16. Nf3 {[%clk 0:02:19]}  Ne7 {[%clk 0:02:12]} 17. Ng3 {[%clk 0:02:02]}  g6 {[%clk 0:02:13]} 18. Kg2 {[%clk 0:02:00]}  a5 {[%clk 0:02:09]} 19. e4 {[%clk 0:01:57]}  Nb6 {[%clk 0:02:07]} 20. b3 {[%clk 0:01:54]}  Rfe8 {[%clk 0:02:07]} 21. Be3 {[%clk 0:01:49]}  Nbc8 {[%clk 0:02:02]} 22. Bd2 {[%clk 0:01:39]}  Bxd2 {[%clk 0:01:55]} 23. Nxd2 {[%clk 0:01:38]}  Rd8 {[%clk 0:01:52]} 24. Ne2 {[%clk 0:01:35]}  Nd6 {[%clk 0:01:49]} 25. f3 {[%clk 0:01:23]}  Nb5 {[%clk 0:01:45]} 26. Ra4 {[%clk 0:01:23]}  Nc8 {[%clk 0:01:39]} 27. Rha1 {[%clk 0:01:18]}  Nb6 {[%clk 0:01:37]} 28. Rxa5 {[%clk 0:01:15]}  Rxa5 {[%clk 0:01:38]} 29. Rxa5 {[%clk 0:01:16]}  Nxd4 {[%clk 0:01:38]} 30. Nxd4 {[%clk 0:01:15]}  Rxd4 {[%clk 0:01:39]} 31. Ra2 {[%clk 0:01:08]}  Nd7 {[%clk 0:01:28]} 32. Nc4 {[%clk 0:01:07]}  Nc5 {[%clk 0:01:23]} 33. Ra8+ {[%clk 0:01:06]}  Kg7 {[%clk 0:01:22]} 34. Na5 {[%clk 0:01:06]}  Rd2+ {[%clk 0:01:17]} 35. Kg3 {[%clk 0:01:05]}  Ra2 {[%clk 0:01:17]} 36. b4 {[%clk 0:01:00]}  Nd3 {[%clk 0:01:04]} 37. Rd8 {[%clk 0:00:58]}  Nc5 {[%clk 0:00:20]} 38. Rb8 {[%clk 0:00:42]}  Ra4 {[%clk 0:00:12]} 39. Nc4 {[%clk 0:00:27]}  Rxb4 {[%clk 0:00:13]} 40. Nd6 {[%clk 0:00:27]}  f5 {[%clk 0:00:12]} 41. exf5 {[%clk 0:00:25]}  gxf5 {[%clk 0:00:12]} 42. Nxf5+ {[%clk 0:00:25]}  Kg6 {[%clk 0:00:13]} 43. Rf8 {[%clk 0:00:23]}  Nd7 {[%clk 0:00:11]} 44. Nh6 {[%clk 0:00:16]}  Nxf8 {[%clk 0:00:06]} 45. f4 {[%clk 0:00:17]}  Rb3+ {[%clk 0:00:05]} 46. Kg2 {[%clk 0:00:17]}  Rb5 {[%clk 0:00:06]} 47. Kf3 {[%clk 0:00:16]}  Ne6 {[%clk 0:00:06]} 48. Ke4 {[%clk 0:00:16]}  Rb4+ {[%clk 0:00:06]} 49. Ke5 {[%clk 0:00:16]}  Nxf4 {[%clk 0:00:06]} 50. Ng8 {[%clk 0:00:16]}  Nd3+ {[%clk 0:00:07]} 51. Ke6 {[%clk 0:00:10]}  Rxh4 {[%clk 0:00:07]} 0-1


[Site "https://www.chess.com"]

[Event "Titled Tuesday Blitz June 13 Late 2023"]
[White "Pakleza, Zbigniew"]
[Black "Gimenez Aguirre, Alejo Ismael"]
[WhiteFideId "1119290"]
[BlackFideId "32041667"]
[WhiteElo "2410"]
[BlackElo "2165"]
[Result "0-1"]
[Round "9"]
[TimeControl "180+2"]
[Date "2023.06.13"]
[WhiteClock "0:00:00"]
[BlackClock "0:00:10"]
[Board "34"]

1. d4 {[%clk 0:03:00]}  Nf6 {[%clk 0:02:38]} 2. Nf3 {[%clk 0:03:00]}  e6 {[%clk 0:02:35]} 3. Bf4 {[%clk 0:03:00]}  b5 {[%clk 0:02:32]} 4. e3 {[%clk 0:03:00]}  a6 {[%clk 0:02:31]} 5. h3 {[%clk 0:03:00]}  c5 {[%clk 0:02:32]} 6. Nbd2 {[%clk 0:02:59]}  Bb7 {[%clk 0:02:32]} 7. Be2 {[%clk 0:02:56]}  Nc6 {[%clk 0:02:32]} 8. O-O {[%clk 0:02:56]}  Be7 {[%clk 0:02:32]} 9. Bh2 {[%clk 0:02:37]}  O-O {[%clk 0:02:31]} 10. c3 {[%clk 0:02:36]}  Rc8 {[%clk 0:02:30]} 11. a3 {[%clk 0:02:33]}  Qb6 {[%clk 0:02:19]} 12. Re1 {[%clk 0:02:31]}  cxd4 {[%clk 0:02:00]} 13. exd4 {[%clk 0:02:24]}  Rfd8 {[%clk 0:01:45]} 14. Bd3 {[%clk 0:02:22]}  d6 {[%clk 0:01:45]} 15. Qe2 {[%clk 0:02:19]}  Bf8 {[%clk 0:01:36]} 16. Bg3 {[%clk 0:02:00]}  Ne7 {[%clk 0:01:35]} 17. a4 {[%clk 0:01:44]}  Bc6 {[%clk 0:01:25]} 18. axb5 {[%clk 0:01:39]}  axb5 {[%clk 0:01:22]} 19. Ra2 {[%clk 0:01:12]}  Ned5 {[%clk 0:01:05]} 20. Ng5 {[%clk 0:01:06]}  h6 {[%clk 0:00:59]} 21. Nxf7 {[%clk 0:00:59]}  Rd7 {[%clk 0:00:52]} 22. Qxe6 {[%clk 0:00:42]}  Re8 {[%clk 0:00:51]} 23. Nxh6+ {[%clk 0:00:32]}  Kh8 {[%clk 0:00:51]} 24. Qxe8 {[%clk 0:00:22]}  Nxe8 {[%clk 0:00:52]} 25. Rxe8 {[%clk 0:00:22]}  gxh6 {[%clk 0:00:45]} 26. Rxf8+ {[%clk 0:00:22]}  Kg7 {[%clk 0:00:46]} 27. Rf3 {[%clk 0:00:10]}  Nf6 {[%clk 0:00:46]} 28. Re3 {[%clk 0:00:09]}  Bd5 {[%clk 0:00:46]} 29. Ra1 {[%clk 0:00:07]}  Qb7 {[%clk 0:00:46]} 30. Bh4 {[%clk 0:00:04]}  Nh5 {[%clk 0:00:39]} 31. Be4 {[%clk 0:00:02]}  Nf4 {[%clk 0:00:39]} 32. Rae1 {[%clk 0:00:02]}  Rf7 {[%clk 0:00:35]} 33. Rg3+ {[%clk 0:00:01]}  Kf8 {[%clk 0:00:35]} 34. Bxd5 {[%clk 0:00:01]}  Qxd5 {[%clk 0:00:35]} 35. Nf3 {[%clk 0:00:02]}  Qh5 {[%clk 0:00:25]} 36. Bd8 {[%clk 0:00:02]}  Nd3 {[%clk 0:00:21]} 37. Re2 {[%clk 0:00:02]}  Nc1 {[%clk 0:00:19]} 38. Re3 {[%clk 0:00:02]}  Qf5 {[%clk 0:00:17]} 39. Bc7 {[%clk 0:00:02]}  Qd7 {[%clk 0:00:16]} 40. Ba5 {[%clk 0:00:01]}  Qf5 {[%clk 0:00:16]} 41. Bb4 {[%clk 0:00:02]}  Qd5 {[%clk 0:00:16]} 42. Rg6 {[%clk 0:00:02]}  Rd7 {[%clk 0:00:15]} 43. Ree6 {[%clk 0:00:03]}  Qc4 {[%clk 0:00:15]} 44. Rxd6 {[%clk 0:00:03]}  Rxd6 {[%clk 0:00:15]} 45. Rxd6 {[%clk 0:00:04]}  Kf7 {[%clk 0:00:15]} 46. Kh2 {[%clk 0:00:04]}  Kg7 {[%clk 0:00:15]} 47. Ne5 {[%clk 0:00:05]}  Qe2 {[%clk 0:00:12]} 48. Rg6+ {[%clk 0:00:05]}  Kh7 {[%clk 0:00:12]} 49. Rg3 {[%clk 0:00:06]}  Qe1 {[%clk 0:00:11]} 50. Rf3 {[%clk 0:00:06]}  Ne2 {[%clk 0:00:12]} 51. h4 {[%clk 0:00:06]}  Qg1+ {[%clk 0:00:12]} 52. Kh3 {[%clk 0:00:06]}  Qh1+ {[%clk 0:00:12]} 53. Kg4 {[%clk 0:00:07]}  Qxg2+ {[%clk 0:00:13]} 54. Kf5 {[%clk 0:00:07]}  Ng1 {[%clk 0:00:11]} 55. Rf4 {[%clk 0:00:07]}  Nh3 {[%clk 0:00:11]} 56. Rf3 {[%clk 0:00:07]}  Nxf2 {[%clk 0:00:10]} 57. Ke6 {[%clk 0:00:06]}  Nh3 {[%clk 0:00:10]} 58. Rf7+ {[%clk 0:00:06]}  Kg8 {[%clk 0:00:10]} 59. Rf6 {[%clk 0:00:05]}  Kh7 {[%clk 0:00:08]} 60. d5 {[%clk 0:00:05]}  Qg3 {[%clk 0:00:07]} 61. Rf7+ {[%clk 0:00:05]}  Kh8 {[%clk 0:00:06]} 62. d6 {[%clk 0:00:04]}  Nf4+ {[%clk 0:00:06]} 63. Kd7 {[%clk 0:00:05]}  Qh3+ {[%clk 0:00:06]} 64. Kc7 {[%clk 0:00:04]}  Nd5+ {[%clk 0:00:06]} 65. Kc6 {[%clk 0:00:04]}  Nxb4+ {[%clk 0:00:06]} 66. cxb4 {[%clk 0:00:05]}  Qc8+ {[%clk 0:00:06]} 67. Kd5 {[%clk 0:00:05]}  Qa8+ {[%clk 0:00:07]} 68. Nc6 {[%clk 0:00:04]}  Qa2+ {[%clk 0:00:07]} 69. Kc5 {[%clk 0:00:03]}  Qxf7 {[%clk 0:00:08]} 70. Kxb5 {[%clk 0:00:03]}  Qd7 {[%clk 0:00:09]} 71. Kc5 {[%clk 0:00:04]}  Kg7 {[%clk 0:00:09]} 72. Ne5 {[%clk 0:00:04]}  Qc8+ {[%clk 0:00:09]} 73. Kd5 {[%clk 0:00:04]}  Kf6 {[%clk 0:00:10]} 74. b5 {[%clk 0:00:02]}  Qe6+ {[%clk 0:00:10]} 75. Kc6 {[%clk 0:00:00]}  Kxe5 {[%clk 0:00:10]} 0-1


[Site "https://www.chess.com"]

[Event "Titled Tuesday Blitz June 13 Late 2023"]
[White "Zavgorodniy, Sergiy"]
[Black "Katz, Alexander"]
[WhiteFideId "14110148"]
[BlackFideId "2039796"]
[WhiteElo "2402"]
[BlackElo "2389"]
[Result "1-0"]
[Round "9"]
[TimeControl "180+2"]
[Date "2023.06.13"]
[WhiteClock "0:01:10"]
[BlackClock "0:00:32"]
[Board "36"]

1. d4 {[%clk 0:03:00]}  Nf6 {[%clk 0:02:35]} 2. c4 {[%clk 0:03:01]}  e6 {[%clk 0:02:35]} 3. Nf3 {[%clk 0:03:01]}  d5 {[%clk 0:02:35]} 4. e3 {[%clk 0:03:01]}  c6 {[%clk 0:02:31]} 5. Nbd2 {[%clk 0:03:01]}  Be7 {[%clk 0:02:32]} 6. Bd3 {[%clk 0:03:00]}  O-O {[%clk 0:02:32]} 7. O-O {[%clk 0:03:00]}  Nbd7 {[%clk 0:02:33]} 8. Qe2 {[%clk 0:03:00]}  b6 {[%clk 0:02:33]} 9. e4 {[%clk 0:03:00]}  dxe4 {[%clk 0:02:29]} 10. Nxe4 {[%clk 0:03:01]}  Bb7 {[%clk 0:02:28]} 11. Rd1 {[%clk 0:02:59]}  Qc7 {[%clk 0:02:21]} 12. Bg5 {[%clk 0:02:59]}  c5 {[%clk 0:02:20]} 13. dxc5 {[%clk 0:02:57]}  Nxc5 {[%clk 0:02:18]} 14. Nxc5 {[%clk 0:02:44]}  Qxc5 {[%clk 0:02:16]} 15. Ne5 {[%clk 0:02:40]}  Rad8 {[%clk 0:02:08]} 16. Bc2 {[%clk 0:02:26]}  h6 {[%clk 0:01:52]} 17. Bh4 {[%clk 0:02:00]}  Rd4 {[%clk 0:01:43]} 18. Rxd4 {[%clk 0:01:51]}  Qxd4 {[%clk 0:01:42]} 19. Bg3 {[%clk 0:01:47]}  Rd8 {[%clk 0:01:27]} 20. Rd1 {[%clk 0:01:46]}  Qc5 {[%clk 0:01:25]} 21. Rxd8+ {[%clk 0:01:45]}  Bxd8 {[%clk 0:01:26]} 22. Qd3 {[%clk 0:01:25]}  Bc7 {[%clk 0:01:24]} 23. Nd7 {[%clk 0:01:20]}  Nxd7 {[%clk 0:01:14]} 24. Qxd7 {[%clk 0:01:14]}  Bxg3 {[%clk 0:00:34]} 25. Qe8+ {[%clk 0:01:10]}  Qf8 {[%clk 0:00:32]} 26. Bh7+ {[%clk 0:01:10]} 1-0


[Site "https://www.chess.com"]

[Event "Titled Tuesday Blitz June 13 Late 2023"]
[White "HamedWafa4"]
[Black "Saveliev, Alexei"]
[BlackFideId "24128546"]
[WhiteElo "2550"]
[BlackElo "2271"]
[Result "1-0"]
[Round "9"]
[TimeControl "180+2"]
[Date "2023.06.13"]
[WhiteClock "0:01:08"]
[BlackClock "0:00:00"]
[Board "38"]

1. e4 {[%clk 0:02:44]}  g6 {[%clk 0:01:07]} 2. d4 {[%clk 0:02:42]}  Bg7 {[%clk 0:01:02]} 3. Nc3 {[%clk 0:02:37]}  d6 {[%clk 0:01:03]} 4. f4 {[%clk 0:02:33]}  Nc6 {[%clk 0:01:03]} 5. Be3 {[%clk 0:02:32]}  Nf6 {[%clk 0:01:03]} 6. Nf3 {[%clk 0:02:31]}  O-O {[%clk 0:01:03]} 7. Be2 {[%clk 0:02:26]}  e5 {[%clk 0:01:02]} 8. dxe5 {[%clk 0:02:24]}  dxe5 {[%clk 0:01:03]} 9. Qxd8 {[%clk 0:02:20]}  Rxd8 {[%clk 0:01:04]} 10. fxe5 {[%clk 0:02:16]}  Ng4 {[%clk 0:01:04]} 11. Bg5 {[%clk 0:02:16]}  Rf8 {[%clk 0:00:55]} 12. Nd5 {[%clk 0:02:12]}  Ngxe5 {[%clk 0:00:50]} 13. Nxc7 {[%clk 0:02:03]}  Rb8 {[%clk 0:00:50]} 14. O-O-O {[%clk 0:02:02]}  Bg4 {[%clk 0:00:35]} 15. Nd5 {[%clk 0:01:53]}  Bxf3 {[%clk 0:00:22]} 16. gxf3 {[%clk 0:01:53]}  h6 {[%clk 0:00:20]} 17. Be3 {[%clk 0:01:51]}  Kh7 {[%clk 0:00:18]} 18. h4 {[%clk 0:01:50]}  Rbc8 {[%clk 0:00:17]} 19. c3 {[%clk 0:01:47]}  Na5 {[%clk 0:00:10]} 20. Bd4 {[%clk 0:01:42]}  Nec6 {[%clk 0:00:03]} 21. Bxg7 {[%clk 0:01:42]}  Kxg7 {[%clk 0:00:04]} 22. b4 {[%clk 0:01:40]}  Nxb4 {[%clk 0:00:05]} 23. Nxb4 {[%clk 0:01:39]}  Rxc3+ {[%clk 0:00:05]} 24. Kb2 {[%clk 0:01:39]}  Re3 {[%clk 0:00:04]} 25. Rh2 {[%clk 0:01:35]}  Rc8 {[%clk 0:00:04]} 26. Nd5 {[%clk 0:01:34]}  Rxe2+ {[%clk 0:00:01]} 27. Rxe2 {[%clk 0:01:35]}  Nc4+ {[%clk 0:00:02]} 28. Kb1 {[%clk 0:01:32]}  Ne5 {[%clk 0:00:03]} 29. Rc2 {[%clk 0:01:28]}  Rd8 {[%clk 0:00:02]} 30. f4 {[%clk 0:01:27]}  Nf3 {[%clk 0:00:02]} 31. Rc7 {[%clk 0:01:24]}  Nxh4 {[%clk 0:00:02]} 32. Rxb7 {[%clk 0:01:23]}  Ng2 {[%clk 0:00:03]} 33. Rg1 {[%clk 0:01:20]}  Nh4 {[%clk 0:00:02]} 34. f5 {[%clk 0:01:19]}  g5 {[%clk 0:00:01]} 35. Rxa7 {[%clk 0:01:16]}  Nf3 {[%clk 0:00:01]} 36. Rc1 {[%clk 0:01:14]}  Nd2+ {[%clk 0:00:01]} 37. Ka1 {[%clk 0:01:14]}  Nxe4 {[%clk 0:00:02]} 38. Nc7 {[%clk 0:01:11]}  Rd2 {[%clk 0:00:00]} 39. Rc6 {[%clk 0:01:08]} 1-0


[Site "https://www.chess.com"]

[Event "Titled Tuesday Blitz June 13 Late 2023"]
[White "Mika, Tomasz"]
[Black "Adewumi, Tanitoluwa"]
[WhiteFideId "1132970"]
[BlackFideId "30966396"]
[WhiteElo "2186"]
[BlackElo "2646"]
[Result "0-1"]
[Round "9"]
[TimeControl "180+2"]
[Date "2023.06.13"]
[WhiteClock "0:01:26"]
[BlackClock "0:02:28"]
[Board "41"]

1. d4 {[%clk 0:03:00]}  Nf6 {[%clk 0:02:56]} 2. Bf4 {[%clk 0:03:01]}  e6 {[%clk 0:02:55]} 3. Nf3 {[%clk 0:03:00]}  b6 {[%clk 0:02:55]} 4. e3 {[%clk 0:02:59]}  Bb7 {[%clk 0:02:55]} 5. h3 {[%clk 0:03:00]}  d5 {[%clk 0:02:56]} 6. Be2 {[%clk 0:03:00]}  Bd6 {[%clk 0:02:57]} 7. Ne5 {[%clk 0:02:59]}  Nbd7 {[%clk 0:02:57]} 8. Nxd7 {[%clk 0:02:57]}  Qxd7 {[%clk 0:02:57]} 9. Bxd6 {[%clk 0:02:57]}  Qxd6 {[%clk 0:02:57]} 10. O-O {[%clk 0:02:58]}  O-O {[%clk 0:02:57]} 11. Nd2 {[%clk 0:02:54]}  e5 {[%clk 0:02:57]} 12. dxe5 {[%clk 0:02:52]}  Qxe5 {[%clk 0:02:58]} 13. c3 {[%clk 0:02:50]}  c5 {[%clk 0:02:55]} 14. Nf3 {[%clk 0:02:45]}  Qe7 {[%clk 0:02:55]} 15. Qc2 {[%clk 0:02:43]}  Rad8 {[%clk 0:02:52]} 16. Rfd1 {[%clk 0:02:42]}  g6 {[%clk 0:02:51]} 17. c4 {[%clk 0:02:28]}  Rfe8 {[%clk 0:02:46]} 18. cxd5 {[%clk 0:02:27]}  Nxd5 {[%clk 0:02:47]} 19. Rd2 {[%clk 0:02:16]}  Nxe3 {[%clk 0:02:38]} 20. fxe3 {[%clk 0:02:06]}  Qxe3+ {[%clk 0:02:39]} 21. Kf1 {[%clk 0:01:35]}  Bxf3 {[%clk 0:02:30]} 22. Rxd8 {[%clk 0:01:33]}  Bxe2+ {[%clk 0:02:31]} 23. Ke1 {[%clk 0:01:26]}  Bd3+ {[%clk 0:02:28]} 0-1


[Site "https://www.chess.com"]

[Event "Titled Tuesday Blitz June 13 Late 2023"]
[White "Uzcategui Rodriguez, Alejandro"]
[Black "Vlassov, Nikolai"]
[WhiteFideId "3903400"]
[BlackFideId "4103360"]
[WhiteElo "2252"]
[BlackElo "2324"]
[Result "0-1"]
[Round "9"]
[TimeControl "180+2"]
[Date "2023.06.13"]
[WhiteClock "0:00:54"]
[BlackClock "0:00:53"]
[Board "42"]

1. d4 {[%clk 0:02:58]}  Nf6 {[%clk 0:02:59]} 2. Nf3 {[%clk 0:02:57]}  e6 {[%clk 0:02:59]} 3. Bg5 {[%clk 0:02:56]}  h6 {[%clk 0:02:59]} 4. Bh4 {[%clk 0:02:56]}  c5 {[%clk 0:02:59]} 5. e3 {[%clk 0:02:52]}  b6 {[%clk 0:02:59]} 6. c3 {[%clk 0:02:51]}  Bb7 {[%clk 0:02:59]} 7. Nbd2 {[%clk 0:02:52]}  Be7 {[%clk 0:02:59]} 8. Bd3 {[%clk 0:02:51]}  g5 {[%clk 0:02:58]} 9. Bg3 {[%clk 0:02:51]}  g4 {[%clk 0:02:59]} 10. Ne5 {[%clk 0:02:43]}  h5 {[%clk 0:02:58]} 11. Rg1 {[%clk 0:02:39]}  d6 {[%clk 0:02:57]} 12. Nec4 {[%clk 0:02:38]}  b5 {[%clk 0:02:57]} 13. Na3 {[%clk 0:02:38]}  b4 {[%clk 0:02:58]} 14. Nac4 {[%clk 0:02:36]}  bxc3 {[%clk 0:02:57]} 15. bxc3 {[%clk 0:02:37]}  cxd4 {[%clk 0:02:54]} 16. exd4 {[%clk 0:02:26]}  Nd5 {[%clk 0:02:50]} 17. Qc2 {[%clk 0:02:20]}  h4 {[%clk 0:02:48]} 18. Rb1 {[%clk 0:02:19]}  Bc6 {[%clk 0:02:40]} 19. Be5 {[%clk 0:02:08]}  dxe5 {[%clk 0:02:37]} 20. Nxe5 {[%clk 0:02:09]}  g3 {[%clk 0:01:51]} 21. hxg3 {[%clk 0:02:06]}  hxg3 {[%clk 0:01:50]} 22. fxg3 {[%clk 0:02:06]}  Ne3 {[%clk 0:01:40]} 23. Qb3 {[%clk 0:01:49]}  Bd5 {[%clk 0:01:17]} 24. Bb5+ {[%clk 0:01:41]}  Kf8 {[%clk 0:01:15]} 25. c4 {[%clk 0:01:42]}  Nxg2+ {[%clk 0:01:06]} 26. Kf2 {[%clk 0:01:40]}  Bb7 {[%clk 0:00:57]} 27. Rxg2 {[%clk 0:01:40]}  Qxd4+ {[%clk 0:00:57]} 28. Qe3 {[%clk 0:01:12]}  Qxe3+ {[%clk 0:00:56]} 29. Kxe3 {[%clk 0:01:12]}  Bxg2 {[%clk 0:00:55]} 30. Rg1 {[%clk 0:00:54]}  Bc5+ {[%clk 0:00:53]} 0-1


[Site "https://www.chess.com"]

[Event "Titled Tuesday Blitz June 13 Late 2023"]
[White "Ansh M Shah"]
[Black "Chernobay, Artem"]
[WhiteFideId "25033379"]
[BlackFideId "4167406"]
[WhiteElo "2084"]
[BlackElo "2474"]
[Result "0-1"]
[Round "9"]
[TimeControl "180+2"]
[Date "2023.06.13"]
[WhiteClock "0:00:10"]
[BlackClock "0:01:31"]
[Board "44"]

1. d4 {[%clk 0:03:00]}  Nf6 {[%clk 0:02:59]} 2. c4 {[%clk 0:02:58]}  g6 {[%clk 0:02:59]} 3. h4 {[%clk 0:02:54]}  Bg7 {[%clk 0:02:59]} 4. Nc3 {[%clk 0:02:54]}  O-O {[%clk 0:02:59]} 5. e4 {[%clk 0:02:54]}  d6 {[%clk 0:02:59]} 6. Be2 {[%clk 0:02:55]}  c5 {[%clk 0:02:51]} 7. d5 {[%clk 0:02:54]}  e6 {[%clk 0:02:51]} 8. h5 {[%clk 0:02:54]}  a6 {[%clk 0:02:43]} 9. a4 {[%clk 0:02:53]}  exd5 {[%clk 0:02:42]} 10. exd5 {[%clk 0:02:54]}  Re8 {[%clk 0:02:41]} 11. Kf1 {[%clk 0:02:54]}  Nbd7 {[%clk 0:02:35]} 12. h6 {[%clk 0:02:52]}  Bh8 {[%clk 0:02:35]} 13. Nf3 {[%clk 0:02:53]}  Ng4 {[%clk 0:02:30]} 14. Bf4 {[%clk 0:02:41]}  Nde5 {[%clk 0:02:27]} 15. Nxe5 {[%clk 0:02:40]}  Nxe5 {[%clk 0:02:28]} 16. Ra3 {[%clk 0:02:35]}  Bd7 {[%clk 0:02:25]} 17. f3 {[%clk 0:02:25]}  Rb8 {[%clk 0:02:18]} 18. Ne4 {[%clk 0:02:25]}  Bf5 {[%clk 0:02:13]} 19. Ng3 {[%clk 0:02:14]}  Bd7 {[%clk 0:02:01]} 20. Ne4 {[%clk 0:02:09]}  Qe7 {[%clk 0:02:01]} 21. Bg5 {[%clk 0:01:40]}  f6 {[%clk 0:02:00]} 22. Bh4 {[%clk 0:01:34]}  Qf8 {[%clk 0:02:00]} 23. Bg3 {[%clk 0:01:02]}  f5 {[%clk 0:01:56]} 24. Ng5 {[%clk 0:00:57]}  Qe7 {[%clk 0:01:55]} 25. f4 {[%clk 0:00:48]}  Ng4 {[%clk 0:01:42]} 26. Bxg4 {[%clk 0:00:45]}  fxg4 {[%clk 0:01:43]} 27. Kg1 {[%clk 0:00:19]}  Bxb2 {[%clk 0:01:42]} 28. Ra2 {[%clk 0:00:17]}  Bf6 {[%clk 0:01:41]} 29. Bh4 {[%clk 0:00:15]}  Qe3+ {[%clk 0:01:38]} 30. Rf2 {[%clk 0:00:11]}  g3 {[%clk 0:01:33]} 31. Bxg3 {[%clk 0:00:10]}  Qxg3 {[%clk 0:01:33]} 32. Rh3 {[%clk 0:00:10]}  Bxh3 {[%clk 0:01:33]} 33. Nxh3 {[%clk 0:00:09]}  Bd4 {[%clk 0:01:31]} 34. Qf3 {[%clk 0:00:08]}  Qxf3 {[%clk 0:01:31]} 35. gxf3 {[%clk 0:00:08]}  b5 {[%clk 0:01:31]} 36. Ng5 {[%clk 0:00:08]}  bxa4 {[%clk 0:01:30]} 37. Ne4 {[%clk 0:00:08]}  Rxe4 {[%clk 0:01:30]} 38. fxe4 {[%clk 0:00:08]}  a3 {[%clk 0:01:30]} 39. Kg2 {[%clk 0:00:09]}  Bxf2 {[%clk 0:01:30]} 40. Kxf2 {[%clk 0:00:10]}  a2 {[%clk 0:01:30]} 41. e5 {[%clk 0:00:10]}  a1=Q {[%clk 0:01:31]} 42. exd6 {[%clk 0:00:11]}  Qc3 {[%clk 0:01:31]} 43. d7 {[%clk 0:00:10]}  Rb2+ {[%clk 0:01:31]} 0-1


[Site "https://www.chess.com"]